[Event "Klubbmästerskap 2025 Torsdagar"]
[Site "Linköping, Sweden"]
[Date "2025.01.16"]
[Round "1.1"]
[White "Thyberg, André"]
[Black "Olsson, Simon"]
[Result "0-1"]
[TimeControl "90 min + 30 sec/move"]
[WhiteElo "1961"]
[BlackElo "2075"]

1. e4 {[%clk 01:30:46]} {[%emt 00:00:13]} c5 {[%clk 01:30:59]} {[%emt
00:00:02]} 2. c3 {[%clk 01:31:07]} {[%emt 00:00:09]} d5 {[%clk 01:31:14]}
{[%emt 00:00:15]} 3. exd5 {[%clk 01:31:27]} {[%emt 00:00:10]} Qxd5 {[%clk
01:31:42]} {[%emt 00:00:02]} 4. d4 {[%clk 01:31:47]} {[%emt 00:00:09]} Nf6
{[%clk 01:31:56]} {[%emt 00:00:16]} 5. Nf3 {[%clk 01:32:08]} {[%emt 00:00:08]}
Bg4 {[%clk 01:32:00]} {[%emt 00:00:27]} 6. Be2 {[%clk 01:31:45]} {[%emt
00:00:53]} e6 {[%clk 01:32:15]} {[%emt 00:00:15]} 7. Na3 {[%clk 01:31:00]}
{[%emt 00:01:15]} Nc6 {[%clk 01:27:46]} {[%emt 00:04:59]} 8. O-O {[%clk
01:30:10]} {[%emt 00:01:20]} cxd4 {[%clk 01:23:01]} {[%emt 00:05:16]} 9. Nb5
{[%clk 01:29:18]} {[%emt 00:01:21]} Rc8 {[%clk 01:22:33]} {[%emt 00:00:58]} 10.
Nbxd4 {[%clk 01:28:59]} {[%emt 00:00:50]} Nxd4 {[%clk 01:11:54]} {[%emt
00:11:08]} 11. Nxd4 {[%clk 01:28:27]} {[%emt 00:01:02]} Bxe2 {[%clk 01:12:13]}
{[%emt 00:00:12]} 12. Qxe2 {[%clk 01:28:40]} {[%emt 00:00:17]} Be7 {[%clk
01:12:13]} {[%emt 00:00:30]} 13. Rd1 {[%clk 01:25:58]} {[%emt 00:03:11]} a6
{[%clk 01:10:34]} {[%emt 00:02:10]} 14. Nf3 {[%clk 01:12:40]} {[%emt 00:13:47]}
Qc4 {[%clk 01:06:18]} {[%emt 00:04:45]} 15. Qe5 {[%clk 01:05:59]} {[%emt
00:07:11]} O-O {[%clk 01:04:31]} {[%emt 00:02:18]} 16. Be3 {[%clk 01:00:41]}
{[%emt 00:05:49]} Ng4 {[%clk 00:47:51]} {[%emt 00:17:09]} 17. Qf4 {[%clk
00:58:42]} {[%emt 00:02:29]} Nxe3 {[%clk 00:41:12]} {[%emt 00:07:09]} 18. Qxe3
{[%clk 00:59:08]} {[%emt 00:00:03]} Rfd8 {[%clk 00:41:26]} {[%emt 00:00:17]} 19.
Qb6 {[%clk 00:52:04]} {[%emt 00:07:34]} Qc7 {[%clk 00:13:52]} {[%emt 00:28:04]}
20. Rxd8+ {[%clk 00:48:03]} {[%emt 00:04:31]} Bxd8 {[%clk 00:14:20]} {[%emt
00:00:02]} 21. Qb3 {[%clk 00:47:01]} {[%emt 00:01:31]} Qb6 {[%clk 00:12:25]}
{[%emt 00:02:26]} 22. Qa3 {[%clk 00:42:55]} {[%emt 00:04:36]} Bf6 {[%clk
00:11:34]} {[%emt 00:01:21]} 23. Rd1 {[%clk 00:38:11]} {[%emt 00:05:13]} Rd8
{[%clk 00:11:32]} {[%emt 00:00:33]} 24. Rxd8+ {[%clk 00:37:38]} {[%emt
00:01:03]} Qxd8 {[%clk 00:11:47]} {[%emt 00:00:15]} 25. Qb3 {[%clk 00:35:16]}
{[%emt 00:02:52]} Qd7 {[%clk 00:10:00]} {[%emt 00:02:18]} 26. c4 {[%clk
00:33:09]} {[%emt 00:02:37]} Bxb2 {[%clk 00:08:45]} {[%emt 00:01:44]} 27. h3
{[%clk 00:33:12]} {[%emt 00:00:26]} Bf6 {[%clk 00:09:03]} {[%emt 00:00:13]} 28.
Qe3 {[%clk 00:32:41]} {[%emt 00:01:01]} h6 {[%clk 00:08:51]} {[%emt 00:00:43]}
29. Qe4 {[%clk 00:30:42]} {[%emt 00:02:29]} Qc6 {[%clk 00:07:06]} {[%emt
00:02:15]} 30. Qxc6 {[%clk 00:30:25]} {[%emt 00:00:47]} bxc6 {[%clk 00:07:33]}
{[%emt 00:00:03]} 31. Kf1 {[%clk 00:30:35]} {[%emt 00:00:20]} Kf8 {[%clk
00:05:05]} {[%emt 00:02:59]} 32. Ke2 {[%clk 00:30:34]} {[%emt 00:00:29]} c5
{[%clk 00:03:31]} {[%emt 00:02:05]} 33. Nd2 {[%clk 00:29:31]} {[%emt 00:01:33]}
Ke7 {[%clk 00:03:55]} {[%emt 00:00:06]} 34. Kd3 {[%clk 00:27:43]} {[%emt
00:02:18]} Bd4 {[%clk 00:03:51]} {[%emt 00:00:34]} 35. f3 {[%clk 00:28:07]}
{[%emt 00:00:06]} f5 {[%clk 00:04:09]} {[%emt 00:00:12]} 36. g4 {[%clk
00:26:54]} {[%emt 00:01:43]} Kf6 {[%clk 00:03:20]} {[%emt 00:01:20]} 37. Nb3
{[%clk 00:21:00]} {[%emt 00:06:24]} Bg1 {[%clk 00:03:01]} {[%emt 00:00:49]} 38.
f4 {[%clk 00:19:00]} {[%emt 00:02:29]} e5 {[%clk 00:01:41]} {[%emt 00:01:51]}
39. fxe5+ {[%clk 00:16:17]} {[%emt 00:03:13]} Kxe5 {[%clk 00:02:10]} {[%emt
00:00:01]} 40. gxf5 {[%clk 00:16:46]} {[%emt 00:00:01]} Kxf5 {[%clk 00:02:32]}
{[%emt 00:00:08]} 41. Nc1 {[%clk 00:10:44]} {[%emt 00:06:32]} g5 {[%clk
00:02:40]} {[%emt 00:00:22]} 42. Ke2 {[%clk 00:08:16]} {[%emt 00:02:58]} Ke4
{[%clk 00:02:15]} {[%emt 00:00:55]} 43. Nb3 {[%clk 00:08:21]} {[%emt 00:00:25]}
h5 {[%clk 00:02:23]} {[%emt 00:00:22]} 44. Nd2+ {[%clk 00:08:26]} {[%emt
00:00:25]} Kf4 {[%clk 00:02:06]} {[%emt 00:00:47]} 45. Nf3 {[%clk 00:07:45]}
{[%emt 00:01:10]} Bd4 {[%clk 00:01:23]} {[%emt 00:01:14]} 46. Nxd4 {[%clk
00:06:23]} {[%emt 00:01:52]} cxd4 {[%clk 00:01:51]} {[%emt 00:00:01]} 47. Kd3
{[%clk 00:03:47]} {[%emt 00:03:06]} Ke5 {[%clk 00:02:20]} {[%emt 00:00:01]} 48.
c5 {[%clk 00:03:58]} {[%emt 00:00:19]} Kd5 {[%clk 00:02:38]} {[%emt 00:00:13]}
49. c6 {[%clk 00:04:19]} {[%emt 00:00:09]} Kxc6 {[%clk 00:03:04]} {[%emt
00:00:04]} 50. Kxd4 {[%clk 00:04:48]} {[%emt 00:00:01]} Kd6 {[%clk 00:02:33]}
{[%emt 00:01:01]} 51. Ke4 {[%clk 00:04:52]} {[%emt 00:00:26]} Ke6 {[%clk
00:02:55]} {[%emt 00:00:08]} 52. a3 {[%clk 00:01:51]} {[%emt 00:03:31]} Kf6
{[%clk 00:02:23]} {[%emt 00:01:02]} 53. a4 {[%clk 00:01:23]} {[%emt 00:00:58]}
a5 {[%clk 00:02:49]} {[%emt 00:00:04]} 54. Kd4 {[%emt 00:00:46]} Ke5+ 0-1

[Event "Klubbmästerskap 2025 Torsdagar"]
[Site "Linköping, Sweden"]
[Date "2025.01.16"]
[Round "1.2"]
[White "Roginski, Hugo"]
[Black "Pettersson, Börje"]
[Result "0-1"]
[TimeControl "90 min + 30 sec/move"]
[WhiteElo "1884"]
[BlackElo "1906"]

1. e4 {[%clk 01:30:56]} {[%emt 00:00:02]} c5 {[%clk 01:30:36]} {[%emt
00:00:25]} 2. Nf3 {[%clk 01:31:23]} {[%emt 00:00:04]} d6 {[%clk 01:30:07]}
{[%emt 00:00:59]} 3. d4 {[%clk 01:31:48]} {[%emt 00:00:05]} cxd4 {[%clk
01:30:27]} {[%emt 00:00:10]} 4. Nxd4 {[%clk 01:32:16]} {[%emt 00:00:02]} Nf6
{[%clk 01:30:40]} {[%emt 00:00:17]} 5. Nc3 {[%clk 01:32:42]} {[%emt 00:00:04]}
a6 {[%clk 01:30:51]} {[%emt 00:00:20]} 6. Be2 {[%clk 01:33:10]} {[%emt
00:00:02]} e5 {[%clk 01:28:49]} {[%emt 00:02:31]} 7. Nb3 {[%clk 01:33:34]}
{[%emt 00:00:06]} Be7 {[%clk 01:27:50]} {[%emt 00:01:29]} 8. O-O {[%clk
01:33:16]} {[%emt 00:00:47]} Be6 {[%clk 01:26:21]} {[%emt 00:02:00]} 9. f4
{[%clk 01:31:23]} {[%emt 00:02:24]} Qc7 {[%clk 01:22:45]} {[%emt 00:04:05]} 10.
Be3 {[%clk 01:19:35]} {[%emt 00:12:18]} Nbd7 {[%clk 01:22:34]} {[%emt
00:00:42]} 11. Kh1 {[%clk 01:14:35]} {[%emt 00:05:30]} Rc8 {[%clk 01:20:54]}
{[%emt 00:02:09]} 12. Qe1 {[%clk 01:09:09]} {[%emt 00:05:57]} b5 {[%clk
01:12:21]} {[%emt 00:09:03]} 13. a3 {[%clk 01:06:25]} {[%emt 00:03:15]} Bc4
{[%clk 01:01:13]} {[%emt 00:11:35]} 14. Rd1 {[%clk 00:54:16]} {[%emt 00:12:41]}
Bxe2 {[%clk 00:56:26]} {[%emt 00:05:18]} 15. Qxe2 {[%clk 00:54:10]} {[%emt
00:00:35]} O-O {[%clk 00:41:37]} {[%emt 00:15:19]} 16. f5 {[%clk 00:37:48]}
{[%emt 00:16:52]} Rfe8 {[%clk 00:31:57]} {[%emt 00:10:10]} 17. Rd2 {[%clk
00:33:36]} {[%emt 00:04:42]} Qc4 {[%clk 00:29:19]} {[%emt 00:03:09]} 18. Bg1
{[%clk 00:25:14]} {[%emt 00:08:51]} Qxe2 {[%clk 00:23:37]} {[%emt 00:06:13]} 19.
Rxe2 {[%clk 00:25:34]} {[%emt 00:00:10]} Rc4 {[%clk 00:23:38]} {[%emt
00:00:29]} 20. Rd1 {[%clk 00:18:48]} {[%emt 00:07:15]} Rec8 {[%clk 00:23:09]}
{[%emt 00:00:59]} 21. Rd3 {[%clk 00:13:13]} {[%emt 00:06:05]} Bf8 {[%clk
00:13:06]} {[%emt 00:10:33]} 22. Nd2 {[%clk 00:04:41]} {[%emt 00:09:02]} R4c6
{[%clk 00:12:51]} {[%emt 00:00:45]} 23. h3 {[%clk 00:04:45]} {[%emt 00:00:26]}
Nh5 {[%clk 00:10:29]} {[%emt 00:02:51]} 24. Bh2 {[%clk 00:05:09]} {[%emt
00:00:06]} g6 {[%clk 00:07:41]} {[%emt 00:03:18]} 25. g4 {[%clk 00:04:43]}
{[%emt 00:00:56]} Nf4 {[%clk 00:07:51]} {[%emt 00:00:20]} 26. Bxf4 {[%clk
00:05:11]} {[%emt 00:00:03]} exf4 {[%clk 00:08:11]} {[%emt 00:00:10]} 27. Nf3
{[%clk 00:04:34]} {[%emt 00:01:07]} Ne5 {[%clk 00:07:49]} {[%emt 00:00:52]} 28.
Nxe5 {[%clk 00:04:56]} {[%emt 00:00:08]} dxe5 {[%clk 00:08:14]} {[%emt
00:00:04]} 29. Rd7 {[%clk 00:01:44]} {[%emt 00:03:42]} Bxa3 {[%clk 00:06:03]}
{[%emt 00:02:42]} 30. Nxb5 {[%clk 00:01:04]} {[%emt 00:01:10]} Bc5 {[%clk
00:05:30]} {[%emt 00:01:02]} 31. Nc3 {[%clk 00:00:38]} {[%emt 00:00:57]} f3
{[%clk 00:04:37]} {[%emt 00:01:21]} 32. Re1 {[%clk 00:00:43]} {[%emt 00:00:26]}
Bb4 {[%clk 00:04:23]} {[%emt 00:00:43]} 33. Rd3 {[%clk 00:00:35]} {[%emt
00:00:39]} Bxc3 {[%clk 00:04:36]} {[%emt 00:00:17]} 34. bxc3 {[%clk 00:01:01]}
{[%emt 00:00:04]} Rxc3 {[%clk 00:04:24]} {[%emt 00:00:42]} 35. Ree3 {[%clk
00:00:53]} {[%emt 00:00:37]} Rxd3 {[%clk 00:04:14]} {[%emt 00:00:41]} 36. cxd3
{[%clk 00:01:12]} {[%emt 00:00:10]} Rc1+ {[%clk 00:03:56]} {[%emt 00:00:48]}
0-1

[Event "Klubbmästerskap 2025 Torsdagar"]
[Site "Linköping, Sweden"]
[Date "2025.01.16"]
[Round "1.3"]
[White "Löfgren, Vide"]
[Black "Gustafsson, Nils"]
[Result "1-0"]
[TimeControl "90 min + 30 sec/move"]
[WhiteElo "1928"]
[BlackElo "1860"]

1. b3 {[%clk 01:30:53]} {[%emt 00:00:07]} e5 {[%clk 01:30:18]} {[%emt
00:00:42]} 2. Bb2 {[%clk 01:31:16]} {[%emt 00:00:08]} Nc6 {[%clk 01:30:30]}
{[%emt 00:00:17]} 3. c4 {[%clk 01:30:05]} {[%emt 00:01:42]} Nf6 {[%clk
01:28:28]} {[%emt 00:02:32]} 4. Nc3 {[%clk 01:26:40]} {[%emt 00:03:55]} Bb4
{[%clk 01:25:25]} {[%emt 00:03:34]} 5. g3 {[%clk 01:24:35]} {[%emt 00:02:05]}
O-O {[%clk 01:23:59]} {[%emt 00:01:55]} 6. Bg2 {[%clk 01:24:49]} {[%emt
00:00:46]} Bxc3 {[%clk 01:20:29]} {[%emt 00:04:01]} 7. dxc3 {[%clk 01:21:24]}
{[%emt 00:03:55]} d6 {[%clk 01:18:34]} {[%emt 00:02:24]} 8. e4 {[%clk
01:17:17]} {[%emt 00:04:37]} Ne8 {[%clk 01:12:04]} {[%emt 00:06:59]} 9. Nf3
{[%clk 01:07:45]} {[%emt 00:10:02]} f5 {[%clk 01:11:47]} {[%emt 00:00:47]} 10.
exf5 {[%clk 01:07:21]} {[%emt 00:00:54]} Bxf5 {[%clk 01:11:20]} {[%emt
00:00:57]} 11. O-O {[%clk 01:06:05]} {[%emt 00:01:45]} Nf6 {[%clk 01:08:58]}
{[%emt 00:02:52]} 12. Ng5 {[%clk 00:56:29]} {[%emt 00:10:07]} Ne7 {[%clk
01:00:03]} {[%emt 00:09:24]} 13. f4 {[%clk 00:53:07]} {[%emt 00:03:52]} Bg4
{[%clk 00:51:20]} {[%emt 00:09:13]} 14. Qd2 {[%clk 00:50:11]} {[%emt 00:03:27]}
exf4 {[%clk 00:47:02]} {[%emt 00:04:47]} 15. Rxf4 {[%clk 00:49:31]} {[%emt
00:01:10]} h6 {[%clk 00:41:03]} {[%emt 00:06:29]} 16. Ne4 {[%clk 00:48:58]}
{[%emt 00:01:04]} Nxe4 {[%clk 00:39:25]} {[%emt 00:02:09]} 17. Bxe4 {[%clk
00:48:44]} {[%emt 00:00:43]} Qd7 {[%clk 00:31:02]} {[%emt 00:08:53]} 18. Raf1
{[%clk 00:46:40]} {[%emt 00:02:34]} Rxf4 {[%clk 00:30:29]} {[%emt 00:01:03]} 19.
Qxf4 {[%clk 00:46:11]} {[%emt 00:00:59]} Bh3 {[%clk 00:27:53]} {[%emt
00:03:06]} 20. Rf2 {[%clk 00:43:34]} {[%emt 00:03:07]} Nc6 {[%clk 00:26:57]}
{[%emt 00:01:26]} 21. Bc1 {[%clk 00:34:08]} {[%emt 00:09:56]} Re8 {[%clk
00:25:21]} {[%emt 00:02:06]} 22. Be3 {[%clk 00:28:54]} {[%emt 00:05:45]} Qe7
{[%clk 00:23:17]} {[%emt 00:02:34]} 23. Bg6 {[%clk 00:25:07]} {[%emt 00:04:17]}
Rf8 {[%clk 00:16:18]} {[%emt 00:07:30]} 24. Qxf8+ {[%clk 00:24:33]} {[%emt
00:01:03]} Qxf8 {[%clk 00:16:39]} {[%emt 00:00:09]} 25. Bh7+ {[%clk 00:24:54]}
{[%emt 00:00:09]} Kxh7 {[%clk 00:16:55]} {[%emt 00:00:15]} 26. Rxf8 {[%clk
00:25:21]} {[%emt 00:00:03]} Kg6 {[%clk 00:16:01]} {[%emt 00:01:24]} 27. Bd4
{[%clk 00:17:40]} {[%emt 00:08:11]} Bf5 {[%clk 00:15:25]} {[%emt 00:01:05]} 28.
Rg8 {[%clk 00:15:26]} {[%emt 00:02:44]} Nxd4 {[%clk 00:15:14]} {[%emt
00:00:41]} 29. cxd4 {[%clk 00:15:45]} {[%emt 00:00:10]} Bb1 {[%clk 00:15:28]}
{[%emt 00:00:17]} 30. Rb8 {[%clk 00:15:18]} {[%emt 00:00:58]} Bxa2 {[%clk
00:14:54]} {[%emt 00:01:03]} 31. Rxb7 {[%clk 00:15:34]} {[%emt 00:00:14]} Kf5
{[%clk 00:15:08]} {[%emt 00:00:16]} 32. Rxa7 {[%clk 00:14:00]} {[%emt
00:02:04]} Bxb3 {[%clk 00:15:14]} {[%emt 00:00:23]} 33. Rxc7 {[%clk 00:14:22]}
{[%emt 00:00:09]} Ke4 {[%clk 00:15:01]} {[%emt 00:00:42]} 34. c5 {[%clk
00:13:08]} {[%emt 00:01:44]} d5 {[%clk 00:15:10]} {[%emt 00:00:21]} 35. c6
{[%clk 00:12:41]} {[%emt 00:00:57]} Kxd4 {[%clk 00:15:06]} {[%emt 00:00:34]} 36.
Rxg7 {[%clk 00:12:36]} {[%emt 00:00:35]} Bc2 {[%clk 00:14:53]} {[%emt
00:00:43]} 37. g4 {[%clk 00:12:54]} {[%emt 00:00:12]} 1-0

[Event "Klubbmästerskap 2025 Torsdagar"]
[Site "Linköping, Sweden"]
[Date "2025.01.16"]
[Round "1.4"]
[White "Halvarsson, Peter"]
[Black "Skytt, Klas"]
[Result "1-0"]
[TimeControl "90 min + 30 sec/move"]
[WhiteElo "1927"]
[BlackElo "1764"]

1. e4 {[%clk 01:30:49]} {[%emt 00:00:10]} c5 {[%clk 01:30:30]} {[%emt
00:00:31]} 2. Nf3 {[%clk 01:30:27]} {[%emt 00:00:52]} d6 {[%clk 01:30:10]}
{[%emt 00:00:50]} 3. b4 {[%clk 01:29:29]} {[%emt 00:01:28]} b6 {[%clk
01:28:43]} {[%emt 00:01:56]} 4. Bc4 {[%clk 01:28:12]} {[%emt 00:01:48]} e6
{[%clk 01:28:35]} {[%emt 00:00:38]} 5. d3 {[%clk 01:27:11]} {[%emt 00:01:31]}
a6 {[%clk 01:26:20]} {[%emt 00:02:45]} 6. bxc5 {[%clk 01:24:56]} {[%emt
00:02:45]} b5 {[%clk 01:22:30]} {[%emt 00:04:20]} 7. Bb3 {[%clk 01:24:53]}
{[%emt 00:00:32]} dxc5 {[%clk 01:22:44]} {[%emt 00:00:16]} 8. O-O {[%clk
01:22:17]} {[%emt 00:03:05]} Nf6 {[%clk 01:20:48]} {[%emt 00:02:27]} 9. a4
{[%clk 01:18:43]} {[%emt 00:04:05]} Bb7 {[%clk 01:20:22]} {[%emt 00:00:56]} 10.
Na3 {[%clk 01:06:17]} {[%emt 00:12:56]} Be7 {[%clk 01:16:16]} {[%emt 00:04:35]}
11. Be3 {[%clk 01:01:31]} {[%emt 00:05:16]} b4 {[%clk 01:11:40]} {[%emt
00:05:07]} 12. Nc4 {[%clk 01:00:55]} {[%emt 00:01:05]} a5 {[%clk 01:09:37]}
{[%emt 00:02:34]} 13. Nce5 {[%clk 00:59:02]} {[%emt 00:02:22]} h6 {[%clk
01:06:04]} {[%emt 00:04:03]} 14. Nxf7 {[%clk 00:54:45]} {[%emt 00:04:48]} 1-0

[Event "Klubbmästerskap 2025 Torsdagar"]
[Site "Linköping, Sweden"]
[Date "2025.01.16"]
[Round "1.5"]
[White "Snällfot, Magnus"]
[Black "Davidsson, Asker"]
[Result "1-0"]
[TimeControl "90 min + 30 sec/move"]
[WhiteElo "1778"]
[BlackElo "1823"]

1. e4 {[%clk 01:30:48]} {[%emt 00:00:10]} c5 {[%clk 01:30:36]} {[%emt
00:00:25]} 2. Nf3 {[%clk 01:30:59]} {[%emt 00:00:18]} Nc6 {[%clk 01:30:56]}
{[%emt 00:00:11]} 3. Bb5 {[%clk 01:31:22]} {[%emt 00:00:07]} Qc7 {[%clk
01:24:27]} {[%emt 00:06:59]} 4. Bxc6 {[%clk 01:21:33]} {[%emt 00:10:17]} Qxc6
{[%clk 01:24:30]} {[%emt 00:00:28]} 5. Nc3 {[%clk 01:21:23]} {[%emt 00:00:40]}
Nf6 {[%clk 01:22:01]} {[%emt 00:02:59]} 6. e5 {[%clk 01:13:35]} {[%emt
00:08:19]} Nd5 {[%clk 01:20:28]} {[%emt 00:02:04]} 7. O-O {[%clk 01:10:55]}
{[%emt 00:03:09]} g6 {[%clk 01:17:49]} {[%emt 00:03:08]} 8. d4 {[%clk
01:05:44]} {[%emt 00:05:42]} Bg7 {[%clk 01:14:14]} {[%emt 00:04:05]} 9. Nxd5
{[%clk 01:01:36]} {[%emt 00:04:37]} Qxd5 {[%clk 01:14:23]} {[%emt 00:00:23]} 10.
c3 {[%clk 00:59:34]} {[%emt 00:02:31]} O-O {[%clk 01:13:55]} {[%emt 00:00:58]}
11. Qb3 {[%clk 00:48:52]} {[%emt 00:11:11]} Qxb3 {[%clk 01:02:13]} {[%emt
00:12:14]} 12. axb3 {[%emt 00:00:37]} cxd4 {[%emt 00:00:11]} 13. cxd4 {[%clk
00:47:25]} {[%emt 00:01:09]} b5 {[%clk 00:59:20]} {[%emt 00:03:24]} 14. Bf4
{[%clk 00:39:43]} {[%emt 00:08:11]} Bb7 {[%clk 00:58:30]} {[%emt 00:01:21]} 15.
Rfc1 {[%emt 00:02:37]} f6 {[%clk 00:40:19]} {[%emt 00:18:36]} 16. Nd2 {[%clk
00:22:39]} {[%emt 00:15:30]} fxe5 {[%clk 00:39:23]} {[%emt 00:01:28]} 17. Bxe5
{[%clk 00:22:52]} {[%emt 00:00:16]} Bxe5 {[%clk 00:36:24]} {[%emt 00:03:31]} 18.
dxe5 {[%clk 00:23:20]} {[%emt 00:00:01]} Rfc8 {[%clk 00:34:06]} {[%emt
00:02:48]} 19. b4 {[%clk 00:18:25]} {[%emt 00:05:25]} Rxc1+ {[%clk 00:27:40]}
{[%emt 00:06:55]} 20. Rxc1 {[%clk 00:18:53]} {[%emt 00:00:02]} Rc8 {[%clk
00:28:00]} {[%emt 00:00:11]} 21. Rxc8+ {[%clk 00:13:55]} {[%emt 00:05:28]} Bxc8
{[%clk 00:28:14]} {[%emt 00:00:17]} 22. Nb3 {[%clk 00:07:54]} {[%emt 00:06:31]}
Kf7 {[%clk 00:26:58]} {[%emt 00:01:45]} 23. Nd4 {[%clk 00:07:22]} {[%emt
00:01:01]} a6 {[%clk 00:26:53]} {[%emt 00:00:36]} 24. f4 {[%clk 00:07:35]}
{[%emt 00:00:18]} Bb7 {[%clk 00:24:39]} {[%emt 00:02:44]} 25. h4 {[%clk
00:07:13]} {[%emt 00:00:51]} e6 {[%clk 00:19:40]} {[%emt 00:05:30]} 26. Kf2
{[%clk 00:06:28]} {[%emt 00:01:15]} Ke7 {[%clk 00:19:18]} {[%emt 00:00:52]} 27.
g3 {[%clk 00:05:48]} {[%emt 00:01:09]} Bd5 {[%clk 00:16:09]} {[%emt 00:03:39]}
28. Ke3 {[%clk 00:05:49]} {[%emt 00:00:29]} Kd8 {[%clk 00:15:17]} {[%emt
00:01:22]} 29. Nc2 {[%clk 00:04:31]} {[%emt 00:01:46]} Kc7 {[%clk 00:13:45]}
{[%emt 00:02:04]} 30. Kd4 {[%clk 00:04:53]} {[%emt 00:00:08]} Kb6 {[%clk
00:13:06]} {[%emt 00:01:09]} 31. Ne3 {[%clk 00:04:37]} {[%emt 00:00:45]} Bf3
{[%clk 00:11:59]} {[%emt 00:01:37]} 32. Nf1 {[%clk 00:04:21]} {[%emt 00:00:45]}
h5 {[%clk 00:09:10]} {[%emt 00:03:20]} 33. Nd2 {[%clk 00:04:34]} {[%emt
00:00:18]} Bd5 {[%clk 00:09:15]} {[%emt 00:00:25]} 34. Nf1 {[%clk 00:04:21]}
{[%emt 00:00:42]} a5 {[%clk 00:08:35]} {[%emt 00:01:10]} 35. bxa5+ {[%clk
00:04:12]} {[%emt 00:00:39]} Kxa5 {[%clk 00:09:03]} {[%emt 00:00:02]} 36. Kc5
{[%clk 00:04:19]} {[%emt 00:00:23]} Ka4 {[%clk 00:08:59]} {[%emt 00:00:35]} 37.
b4 {[%clk 00:04:26]} {[%emt 00:00:23]} Bc6 {[%clk 00:06:08]} {[%emt 00:03:21]}
38. Ne3 {[%clk 00:04:28]} {[%emt 00:00:28]} Bf3 {[%clk 00:03:57]} {[%emt
00:02:41]} 39. Nc2 {[%clk 00:03:25]} {[%emt 00:01:33]} Bg2 {[%clk 00:03:51]}
{[%emt 00:00:35]} 40. Nd4 {[%clk 00:03:04]} {[%emt 00:00:51]} Bc6 {[%clk
00:04:01]} {[%emt 00:00:21]} 41. Nxc6 {[%clk 00:02:32]} {[%emt 00:01:01]} dxc6
{[%clk 00:04:30]} {[%emt 00:00:01]} 42. Kd6 {[%clk 00:02:45]} {[%emt 00:00:17]}
Kxb4 {[%clk 00:04:23]} {[%emt 00:00:38]} 43. Kxe6 {[%clk 00:03:01]} {[%emt
00:00:13]} c5 {[%clk 00:04:16]} {[%emt 00:00:38]} 44. Kf6 {[%clk 00:03:02]}
{[%emt 00:00:29]} c4 {[%clk 00:04:44]} {[%emt 00:00:02]} 45. e6 {[%clk
00:03:17]} {[%emt 00:00:14]} c3 {[%clk 00:05:05]} {[%emt 00:00:09]} 46. e7
{[%clk 00:03:32]} {[%emt 00:00:15]} c2 {[%clk 00:05:31]} {[%emt 00:00:05]} 47.
e8=Q {[%clk 00:03:41]} {[%emt 00:00:19]} c1=Q {[%clk 00:05:50]} {[%emt
00:00:12]} 48. Kxg6 {[%clk 00:03:25]} {[%emt 00:00:46]} Qc5 {[%clk 00:04:33]}
{[%emt 00:01:47]} 49. f5 {[%clk 00:03:06]} {[%emt 00:00:50]} Qd6+ {[%clk
00:03:24]} {[%emt 00:01:39]} 50. Kxh5 {[%clk 00:02:27]} {[%emt 00:01:08]} Qxg3
{[%clk 00:03:52]} {[%emt 00:00:02]} 51. Qg6 {[%clk 00:02:25]} {[%emt 00:00:31]}
Qe5 {[%clk 00:03:57]} {[%emt 00:00:22]} 52. Kh6 {[%clk 00:02:32]} {[%emt
00:00:27]} Qh8+ {[%clk 00:04:06]} {[%emt 00:00:21]} 53. Kg5 {[%clk 00:02:55]}
{[%emt 00:00:07]} Qd8+ {[%clk 00:03:17]} {[%emt 00:01:19]} 54. f6 {[%clk
00:03:02]} {[%emt 00:00:23]} Qd5+ {[%clk 00:03:07]} {[%emt 00:00:32]} 55. Qf5
{[%clk 00:03:16]} {[%emt 00:00:24]} Qg8+ {[%clk 00:03:09]} {[%emt 00:00:28]} 56.
Kf4 {[%clk 00:03:19]} {[%emt 00:00:27]} Qf7 {[%clk 00:02:36]} {[%emt 00:01:03]}
57. h5 {[%clk 00:03:25]} {[%emt 00:00:23]} Kc3 {[%clk 00:02:03]} {[%emt
00:01:04]} 58. h6 {[%clk 00:03:27]} {[%emt 00:00:29]} Qc4+ {[%clk 00:01:37]}
{[%emt 00:00:56]} 59. Kg5 {[%clk 00:03:35]} {[%emt 00:00:20]} Qg8+ {[%clk
00:01:58]} {[%emt 00:00:10]} 60. Kf4 {[%clk 00:03:19]} {[%emt 00:00:46]} Qc4+
{[%clk 00:01:54]} {[%emt 00:00:32]} 61. Qe4 {[%clk 00:03:17]} {[%emt 00:00:33]}
Qf7 {[%clk 00:02:05]} {[%emt 00:00:20]} 62. Qe7 {[%clk 00:02:23]} {[%emt
00:01:24]} Qc4+ {[%clk 00:01:43]} {[%emt 00:00:51]} 63. Kg5 {[%clk 00:02:26]}
{[%emt 00:00:27]} Qd5+ {[%clk 00:01:20]} {[%emt 00:00:52]} 64. Kg6 {[%clk
00:02:32]} {[%emt 00:00:27]} Qg8+ {[%clk 00:01:41]} {[%emt 00:00:08]} 65. Qg7
{[%clk 00:02:40]} {[%emt 00:00:22]} Qe6 {[%clk 00:01:40]} {[%emt 00:00:31]} 66.
Kh7 {[%clk 00:02:31]} {[%emt 00:00:40]} Qf5+ {[%clk 00:01:48]} {[%emt
00:00:22]} 67. Qg6 {[%clk 00:02:32]} {[%emt 00:00:28]} Qc8 {[%clk 00:00:45]}
{[%emt 00:01:26]} 68. Kg7 {[%clk 00:01:37]} {[%emt 00:01:32]} b4 {[%clk
00:00:53]} {[%emt 00:00:23]} 69. f7 {[%clk 00:01:57]} {[%emt 00:00:09]} b3
{[%clk 00:00:51]} {[%emt 00:00:33]} 70. f8=Q {[%clk 00:02:01]} {[%emt
00:00:24]} Qxf8+ {[%clk 00:01:16]} {[%emt 00:00:06]} 71. Kxf8 {[%clk 00:02:24]}
{[%emt 00:00:05]} b2 {[%clk 00:01:32]} {[%emt 00:00:16]} 72. Qb1 {[%clk
00:02:43]} {[%emt 00:00:11]} 1-0